Workbook

Sheet TROŠKOVI RENOVIRANJA
B1: KALKULATOR TROŠKOVA ZA RENOVIRANJE KUHINJE
B3: Kategorija | C3: Stavke | D3: Količina | E3: Procenjeni trošak | F3: Stvarni trošak | G3: Ukupan procenjeni trošak | H3: Ukupan stvarni trošak
B4: Ormarići | C4: Donji ormarići: Modularni standardni (kol. u linearnim metrima) | D4: 25 | E4: 5.00 RSD | G4: =Podaci[[#This Row],[Količina]]*Podaci[[#This Row],[Procenjeni trošak]] -> 125 RSD | H4: =Podaci[[#This Row],[Količina]]*Podaci[[#This Row],[Stvarni trošak]] -> 0 RSD
B5: Ormarići | C5: Viseći ormarići: Modularni standardni (kol. u linearnim metrima) | D5: 25 | E5: 3.50 RSD | G5: =Podaci[[#This Row],[Količina]]*Podaci[[#This Row],[Procenjeni trošak]] -> 88 RSD | H5: =Podaci[[#This Row],[Količina]]*Podaci[[#This Row],[Stvarni trošak]] -> 0 RSD
B6: Aparati za čišćenje | C6: Mašina za sudove: Standardna | D6: 1 | E6: 250.00 RSD | G6: =Podaci[[#This Row],[Količina]]*Podaci[[#This Row],[Procenjeni trošak]] -> 250 RSD | H6: =Podaci[[#This Row],[Količina]]*Podaci[[#This Row],[Stvarni trošak]] -> 0 RSD
B7: Aparati za čišćenje | C7: Kanta za đubre: Standardna | D7: 1 | E7: 175.00 RSD | G7: =Podaci[[#This Row],[Količina]]*Podaci[[#This Row],[Procenjeni trošak]] -> 175 RSD | H7: =Podaci[[#This Row],[Količina]]*Podaci[[#This Row],[Stvarni trošak]] -> 0 RSD
B8: Aparati za kuvanje | C8: Šporet: Standardni ugradni | D8: 1 | E8: 375.00 RSD | G8: =Podaci[[#This Row],[Količina]]*Podaci[[#This Row],[Procenjeni trošak]] -> 375 RSD | H8: =Podaci[[#This Row],[Količina]]*Podaci[[#This Row],[Stvarni trošak]] -> 0 RSD
B9: Aparati za kuvanje | C9: Mikrotalasna: Standardna | D9: 1 | E9: 300.00 RSD | G9: =Podaci[[#This Row],[Količina]]*Podaci[[#This Row],[Procenjeni trošak]] -> 300 RSD | H9: =Podaci[[#This Row],[Količina]]*Podaci[[#This Row],[Stvarni trošak]] -> 0 RSD
B10: Radne površine | C10: Puna površina (količina u linearnim metrima) | D10: 23 | E10: 10.00 RSD | G10: =Podaci[[#This Row],[Količina]]*Podaci[[#This Row],[Procenjeni trošak]] -> 230 RSD | H10: =Podaci[[#This Row],[Količina]]*Podaci[[#This Row],[Stvarni trošak]] -> 0 RSD
B11: Vrata | C11: Unutrašnjost: Furnirano drvo | D11: 1 | E11: 65.00 RSD | G11: =Podaci[[#This Row],[Količina]]*Podaci[[#This Row],[Procenjeni trošak]] -> 65 RSD | H11: =Podaci[[#This Row],[Količina]]*Podaci[[#This Row],[Stvarni trošak]] -> 0 RSD
B12: Dodaci | C12: Dodaci: Trenutna topla voda standardno | D12: 1 | E12: 120.00 RSD | G12: =Podaci[[#This Row],[Količina]]*Podaci[[#This Row],[Procenjeni trošak]] -> 120 RSD | H12: =Podaci[[#This Row],[Količina]]*Podaci[[#This Row],[Stvarni trošak]] -> 0 RSD
B13: Dodaci | C13: Dodaci: Dispenzer za sapun | D13: 1 | E13: 40.00 RSD | G13: =Podaci[[#This Row],[Količina]]*Podaci[[#This Row],[Procenjeni trošak]] -> 40 RSD | H13: =Podaci[[#This Row],[Količina]]*Podaci[[#This Row],[Stvarni trošak]] -> 0 RSD
B14: Slavine | C14: Slavina: Sa polugom, standardna | D14: 1 | E14: 130.00 RSD | G14: =Podaci[[#This Row],[Količina]]*Podaci[[#This Row],[Procenjeni trošak]] -> 130 RSD | H14: =Podaci[[#This Row],[Količina]]*Podaci[[#This Row],[Stvarni trošak]] -> 0 RSD
B15: Podovi | C15: Laminat (količina u kvadratima) | D15: 165 | E15: 3.50 RSD | G15: =Podaci[[#This Row],[Količina]]*Podaci[[#This Row],[Procenjeni trošak]] -> 578 RSD | H15: =Podaci[[#This Row],[Količina]]*Podaci[[#This Row],[Stvarni trošak]] -> 0 RSD
B16: Aparati za pranje rublja | C16: Mašina za sudove: Standardna | D16: 1 | E16: 500.00 RSD | G16: =Podaci[[#This Row],[Količina]]*Podaci[[#This Row],[Procenjeni trošak]] -> 500 RSD | H16: =Podaci[[#This Row],[Količina]]*Podaci[[#This Row],[Stvarni trošak]] -> 0 RSD
B17: Aparati za pranje rublja | C17: Mašina za veš: Standardna | D17: 1 | E17: 375.00 RSD | G17: =Podaci[[#This Row],[Količina]]*Podaci[[#This Row],[Procenjeni trošak]] -> 375 RSD | H17: =Podaci[[#This Row],[Količina]]*Podaci[[#This Row],[Stvarni trošak]] -> 0 RSD
B18: Rasveta | C18: Rasveta: Udubljena | D18: 4 | E18: 35.00 RSD | G18: =Podaci[[#This Row],[Količina]]*Podaci[[#This Row],[Procenjeni trošak]] -> 140 RSD | H18: =Podaci[[#This Row],[Količina]]*Podaci[[#This Row],[Stvarni trošak]] -> 0 RSD
B19: Frižideri | C19: Frižider: Samostojeći, luksuzni | D19: 1 | E19: 1,200.00 RSD | G19: =Podaci[[#This Row],[Količina]]*Podaci[[#This Row],[Procenjeni trošak]] -> 1,200 RSD | H19: =Podaci[[#This Row],[Količina]]*Podaci[[#This Row],[Stvarni trošak]] -> 0 RSD
B20: Sudoperi | C20: Dve posude, nerđajući čelik, luksuzni | D20: 1 | E20: 125.00 RSD | G20: =Podaci[[#This Row],[Količina]]*Podaci[[#This Row],[Procenjeni trošak]] -> 125 RSD | H20: =Podaci[[#This Row],[Količina]]*Podaci[[#This Row],[Stvarni trošak]] -> 0 RSD
B21: Ventilacija | C21: Aspirator: Standardni sa crevom | D21: 1 | E21: 180.00 RSD | G21: =Podaci[[#This Row],[Količina]]*Podaci[[#This Row],[Procenjeni trošak]] -> 180 RSD | H21: =Podaci[[#This Row],[Količina]]*Podaci[[#This Row],[Stvarni trošak]] -> 0 RSD
B22: Zidovi | C22: Zidna ploča (količina u kvadratima) | D22: 70 | E22: 2.00 RSD | G22: =Podaci[[#This Row],[Količina]]*Podaci[[#This Row],[Procenjeni trošak]] -> 140 RSD | H22: =Podaci[[#This Row],[Količina]]*Podaci[[#This Row],[Stvarni trošak]] -> 0 RSD
B23: Prozori | C23: Klizno | D23: 2 | E23: 120.00 RSD | G23: =Podaci[[#This Row],[Količina]]*Podaci[[#This Row],[Procenjeni trošak]] -> 240 RSD | H23: =Podaci[[#This Row],[Količina]]*Podaci[[#This Row],[Stvarni trošak]] -> 0 RSD
B24: Drugo | G24: =Podaci[[#This Row],[Količina]]*Podaci[[#This Row],[Procenjeni trošak]] -> 0 RSD | H24: =Podaci[[#This Row],[Količina]]*Podaci[[#This Row],[Stvarni trošak]] -> 0 RSD
B25: Ukupno | E25: =SUBTOTAL(109,Podaci[Procenjeni trošak]) -> 4,014.00 RSD | F25: =SUBTOTAL(109,Podaci[Stvarni trošak]) -> 0.00 RSD | G25: =SUBTOTAL(109,Podaci[Ukupan procenjeni trošak]) -> 5,375.00 RSD | H25: =SUBTOTAL(109,Podaci[Ukupan stvarni trošak]) -> 0.00 RSD
B26: Međuvrednost | G26: =SUBTOTAL(109,Podaci[Ukupan procenjeni trošak]) -> 5,375.00 RSD | H26: =SUBTOTAL(109,Podaci[Ukupan stvarni trošak]) -> 0.00 RSD
B27: Neočekivani troškovi - dodatnih 30% | G27: =G26*0.3 -> 1,612.50 RSD | H27: =H26*0.3 -> 0.00 RSD
B28: Ukupno | G28: =SUM(G26:G27) -> 6,987.50 RSD | H28: =SUM(H26:H27) -> 0.00 RSD
